Workbook

Sheet Suppl Figure 4a
A1: TPA023B 1uM | B1: alpha2(H101R)beta3gamma2
B3: cell1 | C3: % I GABA potentiation | D3: cell2 | E3: % I GABA potentiation | F3: cell3 | G3: % I GABA potentiation | H3: cell4 | I3: % I GABA potentiation | J3: cell5 | K3: % I GABA potentiation
A4: EC5-10 (pA) | B4: =AVERAGE(170,250,255) -> 225 | C4: =(B4/B4)*100-100 -> 0 | D4: =AVERAGE(44,52,53) -> 49.66666667 | E4: =(D4/D4)*100-100 -> 0 | F4: =AVERAGE(73,69,75) -> 72.33333333 | G4: =(F4/F4)*100-100 -> 0 | H4: =AVERAGE(100,80,87) -> 89 | I4: =(H4/H4)*100-100 -> 0 | J4: =AVERAGE(105,97,102) -> 101.3333333 | K4: =(J4/J4)*100-100 -> 0
A5: 1 uM (pA) | B5: 255 | C5: =(B5/B4)*100-100 -> 13.33333333 | D5: 52 | E5: =(D5/D4)*100-100 -> 4.697986577 | F5: 76 | G5: =(F5/F4)*100-100 -> 5.069124424 | H5: 82 | I5: =(H5/H4)*100-100 -> -7.865168539 | J5: 102 | K5: =(J5/J4)*100-100 -> 0.6578947368
A7: EC100 (pA) | B7: 2510 | D7: 1340 | F7: 2650 | H7: 1820 | J7: 2190

Sheet Supple Figure 4b
B1: Competition of 3HRo 15-4513 binding to a1,2,3,5(H->R) mice
B3: Drug (M) | E3: Diazepam (% Binding) | N3: Bretazenil (% Binding) | W3: TPA023B (% Binding)
H4: mean | I4: SD | J4: n | K4: SEM | Q4: mean | R4: SD | S4: n | T4: SEM | Z4: mean | AA4: SD | AB4: n | AC4: SEM
B5: 1e-09 | D5: 89 | E5: 92 | F5: 99 | G5: 86 | H5: =AVERAGE(D5:G5) -> 91.5 | I5: =STDEV(D5:G5) -> 5.567764363 | J5: =COUNT(D5:G5) -> 4 | K5: =I5/SQRT(J5) -> 2.783882181 | M5: 88 | N5: 94 | O5: 92 | P5: 86 | Q5: =AVERAGE(M5:P5) -> 90 | R5: =STDEV(M5:P5) -> 3.651483717 | S5: =COUNT(M5:P5) -> 4 | T5: =R5/SQRT(S5) -> 1.825741858 | V5: 95 | W5: 95 | X5: 99 | Y5: 96 | Z5: =AVERAGE(V5:Y5) -> 96.25 | AA5: =STDEV(V5:Y5) -> 1.892969449 | AB5: =COUNT(V5:Y5) -> 4 | AC5: =AA5/SQRT(AB5) -> 0.9464847243
B6: 2.5e-09 | D6: 95 | E6: 91 | F6: 101 | H6: =AVERAGE(D6:G6) -> 95.66666667 | I6: =STDEV(D6:G6) -> 5.033222957 | J6: =COUNT(D6:G6) -> 3 | K6: =I6/SQRT(J6) -> 2.905932629 | M6: 100 | N6: 98 | O6: 105 | Q6: =AVERAGE(M6:P6) -> 101 | R6: =STDEV(M6:P6) -> 3.605551275 | S6: =COUNT(M6:P6) -> 3 | T6: =R6/SQRT(S6) -> 2.081665999 | V6: 97 | W6: 101 | X6: 92 | Y6: 100 | Z6: =AVERAGE(V6:Y6) -> 97.5 | AA6: =STDEV(V6:Y6) -> 4.041451884 | AB6: =COUNT(V6:Y6) -> 4 | AC6: =AA6/SQRT(AB6) -> 2.020725942
B7: 1e-08 | D7: 92 | E7: 88 | F7: 116 | G7: 79 | H7: 93.75 | I7: 15.79820665 | J7: 4 | K7: 7.899103325 | M7: 92 | N7: 85 | O7: 83 | P7: 68 | Q7: 82 | R7: 10.09950494 | S7: 4 | T7: 5.049752469 | V7: 97 | W7: 89 | X7: 96 | Y7: 106 | Z7: 97 | AA7: 6.976149845 | AB7: 4 | AC7: 3.488074923
B8: 2.5e-08 | D8: 100 | E8: 114 | F8: 103 | G8: 95 | H8: 103 | I8: 8.041558721 | J8: 4 | K8: 4.020779361 | M8: 84 | N8: 78 | O8: 84 | P8: 83 | Q8: 82.25 | R8: 2.872281323 | S8: 4 | T8: 1.436140662 | V8: 94 | W8: 94 | X8: 102 | Y8: 106 | Z8: 99 | AA8: 6 | AB8: 4 | AC8: 3
B9: 1e-07 | D9: 86 | E9: 99 | F9: 94 | G9: 112 | H9: 97.75 | I9: 10.90489187 | J9: 4 | K9: 5.452445934 | M9: 29 | N9: 35 | O9: 33 | P9: 34 | Q9: 32.75 | R9: 2.62995564 | S9: 4 | T9: 1.31497782 | V9: 88 | W9: 112 | X9: 89 | Y9: 95 | Z9: 96 | AA9: 11.10555417 | AB9: 4 | AC9: 5.552777083
B10: 2.5e-07 | D10: 86 | E10: 92 | F10: 106 | G10: 94 | H10: 94.5 | I10: 8.386497084 | J10: 4 | K10: 4.193248542 | M10: 16 | N10: 15 | O10: 16 | P10: 15 | Q10: 15.5 | R10: 0.5773502692 | S10: 4 | T10: 0.2886751346 | V10: 86 | W10: 103 | X10: 84 | Y10: 94 | Z10: 91.75 | AA10: 8.655441448 | AB10: 4 | AC10: 4.327720724
B11: 1e-06 | D11: 86 | E11: 95 | F11: 106 | G11: 105 | H11: 98 | I11: 9.416297928 | J11: 4 | K11: 4.708148964 | M11: 19 | N11: 1 | O11: 5 | P11: 3 | Q11: 7 | R11: 8.164965809 | S11: 4 | T11: 4.082482905 | V11: 96 | W11: 102 | X11: 87 | Y11: 87 | Z11: 93 | AA11: 7.348469228 | AB11: 4 | AC11: 3.674234614
